bitfinex/quotes_ETHUSD_20250507
["timestamp","ask_amount","ask_price","bid_price","bid_amount"]
[1746642036644,6.30958106,1805.0,1804.6,5.5413631]
[1746642036855,5.77914923,1804.9,1804.5,15.74157778]
[1746642037055,5.77914923,1804.9,1804.5,15.74139835]
[1746642037359,0.23866637,1804.9,1804.6,5.54138833]
[1746642037563,0.23866637,1804.9,1804.7,5.54108538]
[1746642037740,0.23866637,1804.9,1804.8,9.1461896]
[1746642038261,0.01,1805.4,1805.0,5.53989411]
[1746642038423,0.01,1805.4,1805.1,5.53983184]
[1746642038767,0.21776268,1805.3,1805.1,5.53983184]
[1746642038969,0.21776268,1805.3,1805.2,9.14494618]
[1746642039130,0.01,1805.4,1805.3,8.53924555]
[1746642039326,0.01,1805.4,1805.3,8.59463257]
[1746642039636,0.4334926,1805.8,1805.7,9.08801849]
[1746642039832,0.4334926,1805.8,1805.7,9.14339169]
[1746642040038,0.4334926,1805.8,1805.7,10.68771099]
[1746642040657,0.4334926,1805.8,1805.7,10.63233779]
[1746642040836,0.4334926,1805.8,1805.7,9.08801849]
[1746642041456,0.4334926,1805.8,1805.7,6.08801849]
[1746642041654,0.63257719,1805.8,1805.5,8.53841825]
[1746642041861,0.63257719,1805.8,1805.5,5.53861336]
[1746642041862,6.95844536,1805.8,1805.5,5.53861336]
[1746642042179,5.53803785,1805.7,1805.2,12.72338877]
[1746642042381,0.6958615,1805.7,1805.3,5.539213]
[1746642042556,0.19891682,1805.6,1805.3,5.539213]
[1746642042753,5.53885557,1805.5,1805.2,0.42425762]
[1746642042968,5.73743274,1805.6,1805.2,5.53953959]
[1746642043149,0.198749,1805.4,1805.1,6.30642709]
[1746642043350,5.53883093,1805.5,1805.1,6.30642709]
[1746642043550,0.19866508,1805.3,1804.9,13.49919939]
[1746642043745,5.53928737,1805.3,1804.9,13.49920554]
[1746642043955,0.19858115,1805.2,1804.9,12.72331844]
[1746642044240,0.7939,1805.4,1805.1,5.53985928]
[1746642044460,0.1983195,1805.3,1804.9,7.183]
[1746642044656,0.7939,1805.4,1805.1,5.53974921]
[1746642044856,0.19824092,1805.3,1805.2,5.53945503]
[1746642045080,6.33294241,1805.4,1805.0,5.96432009]
[1746642045376,0.19740173,1805.3,1805.2,5.5395524]
[1746642045689,5.53812449,1805.7,1805.3,5.53905743]
[1746642045885,0.19827919,1805.6,1805.3,8.53921065]
[1746642046394,0.19827919,1805.6,1805.4,5.53892866]
[1746642046562,6.73846524,1805.8,1805.4,5.53892866]
[1746642046757,0.19913361,1805.5,1805.4,5.53892866]
[1746642046963,6.73846524,1805.8,1805.4,5.53892866]
[1746642047153,0.19913361,1805.5,1805.4,5.53892866]
[1746642047354,5.53804138,1805.7,1805.4,5.53892866]
[1746642047583,0.19913361,1805.5,1805.3,8.53908443]
[1746642047754,5.53804138,1805.7,1805.3,4.40784747]
[1746642047954,5.53804138,1805.7,1805.4,5.53893259]
[1746642048149,5.53804138,1805.7,1805.3,8.53904135]
[1746642048358,6.73846524,1805.8,1805.4,5.53892666]
[1746642049057,6.73846524,1805.8,1805.4,5.53876033]
[1746642049266,1.2005926,1805.8,1805.5,5.53852849]
[1746642049569,0.4334926,1805.8,1805.5,6.65179543]
[1746642049767,0.4334926,1805.8,1805.4,5.53875795]
[1746642049979,0.4334926,1805.8,1805.5,5.53861534]
[1746642050162,5.97141625,1805.8,1805.4,5.53872868]
[1746642050358,5.53803641,1805.7,1805.4,5.53872868]
[1746642050586,0.4334926,1805.8,1805.5,5.53858487]
[1746642050800,5.97139732,1805.8,1805.4,6.94651321]
[1746642050988,0.4334926,1805.8,1805.5,5.53854104]
[1746642051891,5.97121337,1805.8,1805.5,5.53854104]
[1746642052603,5.53824409,1805.7,1805.3,5.53913582]
[1746642052765,5.97136007,1805.8,1805.4,6.0926869]
[1746642053154,5.53811215,1805.7,1805.3,11.07813824]
[1746642053354,5.53837255,1805.6,1805.2,8.5393954]
[1746642053595,5.53837255,1805.6,1805.3,3.0]
[1746642053749,5.53837255,1805.6,1805.3,8.53917481]
[1746642053946,11.50938714,1805.8,1805.4,5.53892503]
[1746642054151,5.53811405,1805.7,1805.4,5.53892503]
[1746642054347,5.53811405,1805.7,1805.3,8.53917481]
[1746642054554,5.97138475,1805.8,1805.5,5.53850152]
[1746642054783,5.97138475,1805.8,1805.4,5.53874787]
[1746642054964,11.50934258,1805.8,1805.4,5.53872866]
[1746642055160,5.97138475,1805.8,1805.4,5.53871371]
[1746642055665,0.4334926,1805.8,1805.4,5.53881337]
[1746642055985,5.97133389,1805.8,1805.5,5.53845223]
[1746642056182,5.97133389,1805.8,1805.4,5.53872328]
[1746642056364,5.53822044,1805.7,1805.4,3.0]
[1746642056559,0.18676949,1805.7,1805.4,8.53884205]
[1746642056756,0.18676949,1805.7,1805.4,14.07756031]
[1746642056952,0.18676949,1805.7,1805.4,8.53871826]
[1746642057262,5.72481569,1805.7,1805.4,9.94657162]
[1746642057484,0.18676949,1805.7,1805.4,9.94657162]
[1746642057692,0.18676949,1805.7,1805.6,6.08832521]
[1746642057896,0.18676949,1805.7,1805.6,15.08708015]
[1746642058071,0.4334926,1805.8,1805.7,5.53801849]
[1746642058270,0.4334926,1805.8,1805.7,6.08801849]
[1746642058490,0.4334926,1805.8,1805.7,8.14499075]
[1746642058689,0.8218,1806.4,1806.1,5.53656946]
[1746642058998,0.1712542,1806.3,1806.1,5.53669929]
[1746642059383,0.8218,1806.4,1805.9,5.53711401]
[1746642059585,0.17121743,1806.2,1805.9,5.53711401]
[1746642059766,0.17131703,1806.3,1805.9,6.6445841]
[1746642059958,0.17125912,1806.1,1805.9,6.6445841]
[1746642060161,5.53657884,1806.2,1805.9,6.6445841]
[1746642060373,0.17119091,1806.0,1805.9,3.0]
[1746642060560,5.53755367,1805.9,1805.6,3.0]
[1746642060785,6.31182627,1806.0,1805.6,3.0]
[1746642060786,6.48307108,1806.0,1805.6,8.53829296]
[1746642060983,0.17110158,1805.8,1805.7,0.55]
[1746642061171,5.53653779,1806.2,1805.8,5.53759666]
[1746642061569,11.07326421,1806.2,1805.8,5.53759666]
[1746642061798,5.53653779,1806.2,1805.8,5.53752511]
[1746642061959,0.7746,1806.3,1806.0,5.53696708]
[1746642062158,0.7746,1806.3,1805.8,0.8068]
[1746642062159,5.53667142,1806.2,1805.8,6.08758527]
[1746642062362,5.53721496,1806.0,1805.8,3.0]
[1746642063293,5.53741713,1805.9,1805.4,0.8035]
[1746642063498,5.5375773,1805.9,1805.7,3.0]
[1746642063698,6.31101627,1806.3,1805.9,5.53726044]
[1746642063869,11.84743108,1806.3,1805.9,0.55]
[1746642064074,6.31101481,1806.3,1805.9,6.08724199]
[1746642064298,5.53659771,1806.2,1805.8,11.07504704]
[1746642064604,5.53650434,1806.2,1805.9,5.53728278]
[1746642064786,5.53649677,1806.2,1805.9,5.53728278]
[1746642065102,5.53649677,1806.2,1805.8,7.06711342]
[1746642065268,0.7746,1806.3,1805.9,5.53735854]
[1746642065471,0.7746,1806.3,1806.0,5.53709856]
[1746642065674,6.31094171,1806.3,1805.9,5.53717507]
[1746642066064,6.31094171,1806.3,1805.9,3.55]
[1746642066265,5.53660633,1806.2,1805.9,3.55]
[1746642066599,6.31094171,1806.3,1805.9,9.08727217]
[1746642066802,0.7746,1806.3,1805.9,5.3024347]
[1746642066966,6.31408183,1806.5,1806.1,5.53667055]
[1746642067367,6.31408183,1806.5,1806.0,5.5369728]
[1746642067368,5.5359612,1806.4,1806.0,5.5369728]
[1746642067569,5.53619972,1806.3,1805.9,6.08720605]
[1746642067784,5.53601178,1806.4,1806.0,5.53693321]
[1746642068215,11.07211371,1806.4,1806.0,5.53693321]
[1746642068427,5.53602438,1806.4,1805.9,0.55]
[1746642068701,5.53602438,1806.4,1806.0,5.53682012]
[1746642068902,5.53630126,1806.3,1806.0,3.0]
[1746642069104,1.18500396,1806.4,1805.8,0.8163]
[1746642069305,5.53657473,1806.2,1805.9,5.53726226]
[1746642069510,5.53622246,1806.3,1805.9,5.53724946]
[1746642069807,5.53622246,1806.3,1806.0,5.53697037]
[1746642070005,5.53622246,1806.3,1805.9,5.5371998]
[1746642070006,11.07264266,1806.3,1805.9,5.5371998]
[1746642070209,5.53622246,1806.3,1805.9,0.55]
[1746642070571,5.53650335,1806.2,1805.9,6.087249]
[1746642070771,5.53622246,1806.3,1805.9,6.087249]
[1746642071207,5.53622246,1806.3,1805.8,3.0]
[1746642071208,0.8151,1806.2,1805.8,3.0]
[1746642071538,0.8151,1806.2,1805.6,3.71071591]
[1746642071539,5.53801849,1805.7,1805.6,3.71071591]
[1746642071895,5.69940933,1805.7,1805.6,3.71071591]
[1746642072938,5.53863195,1805.5,1805.4,3.71071591]
[1746642073140,5.69988629,1805.5,1805.4,3.71071591]
[1746642074140,7.52538616,1805.5,1805.4,3.71071591]
[1746642075563,5.5395786,1805.2,1804.9,3.0]
[1746642075833,5.54020731,1805.0,1804.7,3.71071591]
[1746642076139,0.15648316,1804.9,1804.7,4.12838964]
[1746642076436,0.15648316,1804.9,1804.8,5.54078014]
[1746642076834,6.37296486,1805.1,1804.7,5.09534846]
[1746642077034,0.8228,1804.8,1804.7,3.71071591]
[1746642077404,0.15514556,1804.8,1804.7,3.71071591]
[1746642077839,6.29736574,1805.0,1804.6,0.42569792]
[1746642078009,0.15514556,1804.8,1804.7,5.54108716]
[1746642078213,0.7571,1805.0,1804.7,1.10823257]
[1746642078537,5.5405138,1804.9,1804.7,1.10823257]
[1746642078739,0.15410066,1804.8,1804.7,5.54108716]
[1746642078942,0.7571,1805.0,1804.7,5.54108716]
[1746642079243,0.15449817,1804.9,1804.8,5.54077441]
[1746642079615,6.32986163,1805.2,1804.8,5.54077441]
[1746642079812,0.13519609,1804.9,1804.8,6.64876519]
[1746642080036,0.7903,1805.2,1804.9,5.54037294]
[1746642080239,0.13519609,1804.9,1804.8,6.64876519]
[1746642080425,6.32985724,1805.2,1804.8,6.64876519]
[1746642080745,0.7903,1805.2,1804.8,11.05595001]
[1746642080919,0.1353641,1805.1,1805.0,5.53997814]
[1746642081111,6.33058654,1805.4,1805.0,5.59537414]
[1746642081308,0.13685379,1805.3,1805.0,5.59537414]
[1746642081509,5.53941399,1805.3,1804.9,6.64586033]
[1746642081732,5.5399864,1805.1,1804.8,0.8016]
[1746642081940,5.54056797,1804.9,1804.6,8.96625564]
[1746642082128,5.5413214,1804.7,1804.2,0.828]
[1746642082458,0.13613368,1804.6,1804.3,5.54212561]
[1746642082654,0.13613368,1804.6,1804.3,3.0]
[1746642082959,5.54086461,1804.8,1804.5,3.0]
[1746642083159,5.54094623,1804.8,1804.4,5.54181718]
[1746642083355,5.5418646,1804.5,1804.3,0.93704446]
[1746642083556,5.54203568,1804.4,1804.1,3.71071591]
[1746642083757,5.54186148,1804.5,1804.0,0.7959]
[1746642084057,6.2968041,1804.6,1804.2,5.54244647]
[1746642084224,6.29688278,1804.6,1804.2,3.0]
[1746642084557,6.29697358,1804.6,1804.2,6.6966862]
[1746642084751,6.29697358,1804.6,1804.3,5.54223793]
[1746642084752,0.7554,1804.6,1804.3,5.54223793]
[1746642084940,0.7554,1804.6,1804.3,5.54214068]
[1746642085141,5.53967612,1805.2,1804.3,5.54214068]
[1746642085142,6.33320701,1804.9,1804.4,5.54189326]
[1746642085461,6.33316715,1804.9,1804.5,5.54140998]
[1746642085753,0.7926,1804.9,1804.6,5.54116265]
[1746642085954,6.3707481,1805.1,1804.7,5.54106237]
[1746642086251,0.8308,1805.1,1804.8,5.54074154]
[1746642086450,0.8308,1805.1,1804.8,5.54058088]
[1746642086651,0.12255771,1805.0,1804.8,5.54058088]
[1746642086864,0.12255771,1805.0,1804.8,6.94874442]
[1746642087231,0.12255771,1805.0,1804.8,1.40816354]
[1746642087431,5.54061992,1804.9,1804.6,3.0]
[1746642087757,5.66313239,1804.8,1804.4,5.54179384]
[1746642087933,5.66313239,1804.8,1804.3,6.78267857]
[1746642087934,0.12226376,1804.8,1804.5,3.0]
[1746642088132,5.54091931,1804.8,1804.5,3.0]
[1746642088355,5.54064241,1804.9,1804.2,5.54243101]
[1746642088356,5.54143415,1804.6,1804.2,5.54243101]
[1746642088653,0.88187702,1804.7,1804.5,5.54169673]
[1746642088859,0.12304592,1804.5,1804.4,8.54177593]
[1746642089157,0.7586,1804.7,1804.4,8.54177593]
[1746642089518,0.12314574,1804.6,1804.4,8.54177593]
[1746642089753,0.7586,1804.7,1804.4,8.54177593]
[1746642089956,0.12314574,1804.6,1804.5,5.59711723]
[1746642090258,0.12314574,1804.6,1804.5,6.1471094]
[1746642090579,5.54016835,1805.0,1804.7,5.54106783]
[1746642090755,5.53996621,1805.1,1804.7,5.54106783]
[1746642090930,0.12371794,1805.0,1804.9,5.54032995]
[1746642091129,5.53966684,1805.2,1804.7,5.54093764]
[1746642091330,5.53966684,1805.2,1804.8,5.54075642]
[1746642091331,0.12378623,1805.1,1804.8,5.54075642]
[1746642091531,25.49289615,1805.5,1805.0,0.55]
[1746642091532,0.8215,1805.5,1805.0,0.55]
[1746642091757,0.8215,1805.9,1805.3,5.5390409]
[1746642091958,5.5379101,1805.8,1805.4,5.53878451]
[1746642092255,5.53835703,1805.6,1805.3,0.41625775]
[1746642092424,5.53876548,1805.5,1805.2,3.0]
[1746642092624,5.53895604,1805.4,1805.1,3.0]
[1746642092820,5.53895604,1805.4,1805.1,3.98794845]
[1746642093049,0.12452038,1805.3,1805.2,5.5395524]
[1746642093247,0.12452038,1805.3,1805.1,9.52756027]
[1746642093447,0.8109,1805.5,1805.2,5.5394535]
[1746642093626,6.29282258,1805.7,1805.2,5.59471911]
[1746642093827,0.7548,1805.7,1805.4,5.53890599]
[1746642094040,5.53782789,1805.8,1805.4,5.53890599]
[1746642094234,5.53818252,1805.7,1805.3,3.0]
[1746642094530,5.53789141,1805.8,1805.4,5.53882098]
[1746642094834,0.7548,1805.9,1805.3,5.53898524]
[1746642095034,5.53784851,1805.8,1805.4,5.53891778]
[1746642095563,5.53846243,1805.6,1805.3,3.55389852]
[1746642095767,5.53846243,1805.6,1805.3,9.0931284]
[1746642095954,5.53846243,1805.6,1805.3,0.55389852]
[1746642096263,5.53876517,1805.5,1805.1,3.0]
[1746642096462,0.7508,1805.4,1804.6,7.8876]
[1746642096666,5.53999626,1805.1,1804.7,11.08180281]
[1746642096879,6.28988451,1805.4,1805.0,5.54015551]
[1746642097087,5.53925662,1805.3,1804.9,5.54046765]
[1746642097288,0.7508,1805.4,1804.8,8.54065048]
[1746642097585,5.53956987,1805.2,1804.9,5.54046706]
[1746642097791,5.53956987,1805.2,1804.8,8.54058541]
[1746642098151,5.54000081,1805.1,1804.7,6.09091355]
[1746642098492,5.53947679,1805.3,1804.9,5.54033727]
[1746642098784,5.53924774,1805.3,1804.9,8.54026149]
[1746642098984,2.08924404,1805.4,1804.9,3.0]
[1746642099290,5.54014677,1805.1,1804.7,3.0]
[1746642099486,5.54000335,1805.1,1804.7,5.54107634]
[1746642099688,5.53997725,1805.1,1804.7,6.72846502]
[1746642099991,5.53997725,1805.1,1804.7,6.72828189]
[1746642100296,0.8332,1805.0,1804.4,0.7546]
[1746642100452,6.37347742,1805.0,1804.6,8.5411494]
[1746642100657,5.54049213,1804.9,1804.6,8.5411494]
[1746642101061,6.37357805,1805.0,1804.6,8.5411494]
[1746642101396,0.781,1805.2,1804.7,0.60541011]
[1746642101692,1.33844404,1805.4,1804.7,0.60541011]
[1746642101693,0.12846742,1804.9,1804.8,6.91217333]
[1746642101922,5.53956155,1805.2,1804.8,10.66802754]
[1746642102089,0.12846742,1804.9,1804.8,4.30585421]
[1746642102292,5.53956155,1805.2,1804.8,8.54078014]
[1746642102612,5.53989595,1805.1,1804.8,8.54078014]
[1746642102814,5.6674026,1805.1,1804.8,8.54078014]
[1746642103014,5.66736783,1805.1,1804.8,8.54078014]
[1746642103313,5.5402487,1805.0,1804.7,5.54091649]
[1746642103510,0.12750665,1805.1,1804.9,5.54033735]
[1746642103819,5.53953685,1805.3,1804.9,5.54033735]
[1746642103989,5.53953685,1805.3,1804.9,11.0806276]
[1746642103990,5.53938976,1805.3,1804.9,11.0806276]
[1746642104306,5.53938976,1805.3,1804.9,5.54029025]
[1746642105014,5.5396176,1805.2,1804.8,5.5406174]
[1746642105191,5.53977553,1805.2,1804.8,5.54056968]
[1746642105386,5.54050969,1804.9,1804.7,3.0]
[1746642105611,5.54005932,1805.1,1804.7,8.54104494]
[1746642105981,5.54005932,1805.1,1804.7,14.08193143]
[1746642106182,5.53937927,1805.3,1804.8,5.5407718]
[1746642106417,6.35180047,1805.4,1804.8,5.54057826]
[1746642106586,5.53944823,1805.3,1804.9,5.54023966]
[1746642106786,5.53968432,1805.2,1804.8,11.0812328]
[1746642106999,5.53968432,1805.2,1804.8,5.54056875]
[1746642107199,11.07893896,1805.3,1804.8,5.54056449]
[1746642107395,11.07893896,1805.3,1804.8,5.54057144]
[1746642107396,5.53964914,1805.2,1804.8,5.54057144]
[1746642107598,5.54000547,1805.1,1804.8,3.0]
[1746642108124,5.54000547,1805.1,1804.7,3.0]
[1746642108424,5.54000547,1805.1,1804.8,5.54076531]
[1746642108620,5.54000547,1805.1,1804.7,9.5264258]
[1746642108821,5.53975815,1805.2,1804.8,5.54057596]
[1746642109026,5.53975815,1805.2,1804.7,9.52647811]
[1746642109327,5.54047709,1804.9,1804.5,5.54141953]
[1746642109551,5.54047709,1804.9,1804.6,3.0]
[1746642109748,0.8149,1805.0,1804.4,6.33229973]
[1746642109749,5.54089146,1804.8,1804.4,6.33240284]
[1746642110046,11.08135152,1804.9,1804.5,5.54156765]
[1746642110250,11.08187562,1804.8,1804.5,3.0]
[1746642110446,5.54109003,1804.7,1804.5,3.0]
[1746642110754,6.32133012,1804.6,1804.2,17.16323696]
[1746642110954,5.5419315,1804.5,1804.2,6.79635238]
[1746642111124,5.54216193,1804.4,1804.2,3.7088514]
[1746642112460,5.54231557,1804.3,1804.2,3.7088514]
[1746642112823,5.54231557,1804.3,1804.0,3.0]
[1746642113158,7.052,1804.5,1804.0,3.0]
[1746642113344,0.7798,1804.6,1804.3,5.54218185]
[1746642113657,5.54110334,1804.7,1804.4,5.54190991]
[1746642113861,5.54110334,1804.7,1804.3,7.41252198]
[1746642114221,5.54157371,1804.6,1804.3,1.87036665]
[1746642114421,5.54157371,1804.6,1804.2,5.54241596]
[1746642114649,5.54156072,1804.6,1804.2,5.54241596]
[1746642114831,5.54165005,1804.6,1804.2,5.54260028]
[1746642115041,11.08331045,1804.6,1804.2,5.54244773]
[1746642115243,5.54078014,1804.8,1804.2,5.54244773]
[1746642115455,5.54156905,1804.6,1804.1,9.30464618]
[1746642115635,5.54156905,1804.6,1804.2,5.54247063]
[1746642115835,11.0831991,1804.6,1804.2,5.54247063]
[1746642116252,5.54156905,1804.6,1804.2,5.54247063]
[1746642116455,5.54212566,1804.4,1804.0,5.95240301]
[1746642116656,5.5422121,1804.4,1804.0,4.58076996]
[1746642116835,5.64762734,1804.3,1804.0,3.0]
[1746642117048,6.3297371,1804.2,1803.8,9.25258302]
[1746642117242,6.434549,1804.2,1803.8,9.25258302]
[1746642117782,0.1048119,1804.2,1804.0,5.54323328]
[1746642117957,11.87130573,1804.4,1804.0,5.54323328]
[1746642118136,7.15140904,1804.4,1804.0,5.54322316]
[1746642118466,5.54241911,1804.3,1803.9,9.2522278]
[1746642118840,5.54294795,1804.1,1803.9,3.7088514]
[1746642119559,5.54293879,1804.1,1803.9,3.7088514]
[1746642119740,5.54312311,1804.1,1803.9,3.4588514]
[1746642119938,0.55431231,1804.0,1803.9,3.4588514]
[1746642120135,5.54323725,1804.0,1803.9,3.4588514]
[1746642120336,6.33013725,1804.0,1803.9,3.4588514]
[1746642121085,5.54385761,1803.8,1803.5,5.54456415]
[1746642121240,5.54385761,1803.8,1803.5,3.0]
[1746642121436,11.08748055,1803.9,1803.5,8.54473619]
[1746642121632,5.54433384,1803.7,1803.2,5.63424616]
[1746642121859,6.73108355,1803.9,1803.5,5.54449893]
[1746642122086,5.5438568,1803.8,1803.5,5.54449893]
[1746642122281,6.73113342,1803.9,1803.5,5.54449893]
[1746642122453,7.8409,1804.0,1803.5,0.55]
[1746642122680,7.8153,1804.4,1803.6,0.83424342]
[1746642122871,7.8153,1804.4,1803.9,5.54353052]
[1746642123184,5.5428367,1804.2,1803.8,5.54373948]
[1746642123353,5.5428367,1804.2,1803.8,5.54367055]
[1746642123557,5.5428367,1804.2,1803.8,5.54363431]
[1746642123758,5.54244397,1804.3,1803.8,6.10362053]
[1746642123992,13.35746257,1804.4,1804.0,5.54309517]
[1746642123993,13.35736076,1804.4,1804.0,5.54309517]
[1746642124301,7.054,1804.4,1804.1,5.54268028]
[1746642124597,5.54262598,1804.2,1803.8,0.814]
[1746642124787,5.54302353,1804.1,1803.8,3.0]
[1746642124961,11.08619559,1804.1,1803.8,3.0]
[1746642125163,5.54340585,1804.0,1803.6,0.8295]
[1746642125462,5.54340585,1804.0,1803.6,6.37382147]
[1746642125777,5.54341966,1804.0,1803.6,6.37382147]
[1746642126396,11.08742226,1803.9,1803.6,3.0]
[1746642126577,5.54378859,1803.9,1803.6,3.0]
[1746642126908,5.54434158,1803.7,1803.4,0.4072912]
[1746642127113,5.54434158,1803.7,1803.4,5.54501303]
[1746642127310,11.0887346,1803.7,1803.3,8.51284536]
[1746642127512,5.54448006,1803.6,1803.3,8.51284536]
[1746642127683,5.54448006,1803.6,1803.3,3.0]
[1746642127877,5.54448006,1803.6,1803.2,6.30828021]
[1746642128077,0.7862,1803.8,1803.5,5.54473041]
[1746642128309,13.1531303,1803.9,1803.5,5.54457146]
[1746642128613,13.15293483,1803.9,1803.5,5.54461223]
[1746642128911,5.54391833,1803.8,1803.5,5.54461223]
[1746642129210,6.35009751,1804.0,1803.6,6.35774402]
[1746642129427,5.54365268,1803.9,1803.6,0.8134]
[1746642130079,0.8067,1804.0,1803.6,6.35785769]
[1746642130080,6.35004081,1804.0,1803.6,6.35785769]
[1746642130279,0.8067,1804.0,1803.6,0.8134]
[1746642130480,5.54244009,1804.3,1803.9,5.54352941]
[1746642130712,11.08502994,1804.3,1803.9,5.54352941]
[1746642131010,5.54244009,1804.3,1803.9,5.54352941]
[1746642131390,13.4114887,1804.4,1804.0,5.54309181]
[1746642131584,13.4114887,1804.4,1804.0,6.33959181]
[1746642132030,0.8133,1804.4,1804.0,1.98480842]
[1746642132231,0.7559,1804.7,1804.3,5.54210204]
[1746642132432,6.2965667,1804.9,1804.4,0.8128]
[1746642132736,5.54120366,1804.7,1804.4,0.8128]
[1746642132917,6.64946223,1804.7,1804.3,0.4178572]
[1746642133097,5.54181541,1804.5,1804.2,3.0]
[1746642133297,5.54271949,1804.2,1803.9,0.8128]
[1746642133498,0.8092,1804.0,1803.7,5.54403825]
[1746642133728,0.8092,1804.0,1803.7,5.54413351]
[1746642133898,11.08567479,1804.2,1803.8,5.54377895]
[1746642134100,6.59534627,1804.1,1803.7,6.33073351]
[1746642134294,6.59534627,1804.1,1803.7,6.33055367]
[1746642134514,1.05221191,1804.1,1803.8,5.54374402]
[1746642134713,6.3209301,1804.0,1803.6,0.55]
[1746642134942,6.3209301,1804.0,1803.7,3.0]
[1746642135162,12.97262172,1804.0,1803.7,3.0]
[1746642135367,5.54380663,1803.9,1803.4,5.54486515]
[1746642135656,5.54387737,1803.8,1803.5,5.54465568]
[1746642135864,5.54373887,1803.9,1803.5,5.54465568]
[1746642136172,1.05221191,1803.9,1803.6,5.54427493]
[1746642136331,6.32074803,1804.0,1803.6,5.54427493]
[1746642136537,5.54355148,1803.9,1803.6,5.54427493]
[1746642136748,6.32074803,1804.0,1803.6,5.54427493]
[1746642137050,5.54388137,1803.8,1803.5,0.55]
[1746642137451,5.54418674,1803.7,1803.4,3.0]
[1746642137672,5.54337973,1804.0,1803.6,5.5443441]
[1746642138170,5.54365317,1803.9,1803.5,5.54453543]
[1746642138364,5.54365317,1803.9,1803.3,6.54018938]
[1746642138365,5.54458144,1803.6,1803.3,1.20701288]
[1746642138666,0.55445814,1803.6,1803.3,5.95899729]
[1746642138877,6.09894275,1803.6,1803.3,5.95899729]
[1746642139025,6.09894275,1803.6,1803.3,3.41361288]
[1746642139219,0.55445814,1803.6,1803.3,8.95888853]
[1746642139434,5.54370272,1803.9,1803.5,5.54461472]
[1746642139672,11.08751702,1803.9,1803.5,6.39295642]
[1746642139941,5.54370272,1803.9,1803.5,11.93752616]
[1746642140154,5.54370272,1803.9,1803.5,6.33746974]
[1746642140348,5.54370272,1803.9,1803.5,6.39291143]
[1746642140548,12.5987483,1804.2,1803.8,0.55]
[1746642140760,12.5987483,1804.2,1803.7,4.7831765]
[1746642140953,5.54302201,1804.1,1803.7,6.09404643]
[1746642141131,5.54315125,1804.1,1803.6,5.54428932]
[1746642141328,5.5433125,1804.0,1803.6,5.54446662]
[1746642141534,7.056,1804.2,1803.6,3.0]
[1746642141535,5.54383144,1803.9,1803.6,3.0]
[1746642141739,5.54393703,1803.8,1803.6,3.0]
[1746642141975,6.33843144,1803.9,1803.5,6.33753021]
[1746642142151,0.7946,1803.9,1803.5,6.39290826]
[1746642142352,5.54373308,1803.9,1803.5,6.33746536]
[1746642142552,5.54453382,1803.6,1803.3,6.79116856]
[1746642142755,5.54521817,1803.4,1803.1,0.8322]
[1746642142940,5.54493485,1803.5,1803.0,5.54612628]
[1746642143145,5.54493485,1803.5,1803.1,5.54589783]
[1746642143772,7.7822,1803.7,1803.1,5.96026453]
[1746642143970,6.32288987,1803.6,1803.2,5.54541693]
[1746642144138,6.32288987,1803.6,1803.1,0.46975966]
[1746642144139,5.54500397,1803.5,1803.1,5.96019516]
[1746642144340,5.54520281,1803.4,1803.1,0.414306]
[1746642144534,5.54520281,1803.4,1803.0,5.54608722]
[1746642145062,5.54543046,1803.3,1803.0,3.0]
[1746642145236,6.10004665,1803.3,1802.9,0.8322]
[1746642145429,6.36520927,1803.4,1803.1,5.54599523]
[1746642145668,0.82,1803.4,1803.1,5.54599523]
[1746642145869,0.82,1803.4,1802.9,6.78545558]
[1746642145870,6.36519533,1803.4,1803.0,5.54613411]
[1746642146074,5.54561226,1803.3,1802.9,6.78545558]
[1746642146234,5.54561226,1803.3,1802.9,6.78541757]
[1746642146651,6.73669978,1803.3,1802.9,6.78541757]
[1746642146856,5.54570863,1803.2,1802.9,3.40680448]
[1746642147275,6.73669978,1803.3,1802.9,3.40680448]
[1746642147276,6.73664487,1803.3,1802.9,8.95340741]
[1746642147477,0.82,1803.4,1803.0,5.54629742]
[1746642147782,6.36519136,1803.4,1803.0,5.5461111]
[1746642148188,6.36519136,1803.4,1803.1,5.54596162]
[1746642148386,0.82,1803.4,1803.1,5.54596162]
[1746642148766,0.82,1803.4,1803.0,5.54617317]
[1746642148971,6.36525411,1803.4,1803.0,5.54617317]
[1746642149192,6.36525411,1803.4,1802.9,3.40680448]
[1746642149395,6.36525411,1803.4,1803.0,5.54616415]
[1746642150109,0.82,1803.4,1802.9,3.40680448]
[1746642150261,6.36524352,1803.4,1803.0,5.54604627]
[1746642150661,5.54543399,1803.3,1803.0,5.5463117]
[1746642150880,5.54543399,1803.3,1802.9,5.95326338]
[1746642151215,5.545389,1803.3,1802.9,5.95326338]
[1746642151382,5.545389,1803.3,1803.0,5.54630534]
[1746642151578,6.36528297,1803.4,1803.0,5.54614863]
[1746642151881,6.36528297,1803.4,1803.0,5.54609741]
[1746642152082,7.55630196,1803.4,1803.0,5.54609741]
[1746642152289,5.54458405,1803.6,1803.2,5.54565952]
[1746642152493,12.5599431,1803.5,1803.1,6.3706753]
[1746642152713,5.5449431,1803.5,1803.1,6.37062865]
[1746642152912,5.54463277,1803.6,1803.3,5.54526771]
[1746642153413,5.54463277,1803.6,1803.2,5.54566016]
[1746642153609,5.54463277,1803.6,1803.2,5.54553912]
[1746642154204,5.54548401,1803.3,1803.0,8.54625894]
[1746642154527,5.54518846,1803.4,1803.0,14.09233062]
[1746642154888,5.54518846,1803.4,1803.0,8.54611799]
[1746642155224,0.8242,1803.7,1803.1,12.13450723]
[1746642155429,5.54468299,1803.6,1803.2,5.54566891]
[1746642155629,6.36849072,1803.7,1803.2,7.30796916]
[1746642155927,0.8242,1803.7,1803.4,5.54503257]
[1746642156128,5.54390662,1803.8,1803.5,5.54471651]
[1746642156328,7.015,1804.2,1803.7,5.54391811]
[1746642156626,7.015,1804.2,1803.6,0.55]
[1746642156627,5.54267057,1804.2,1803.8,5.59919063]
[1746642156780,5.54267057,1804.2,1803.8,6.15910969]
[1746642156986,5.54267057,1804.2,1803.9,5.54349373]
[1746642157181,5.54246904,1804.3,1803.9,5.96843835]
[1746642157583,5.54282409,1804.2,1803.9,0.42494462]
[1746642157812,5.54246855,1804.3,1803.9,6.37262854]
[1746642158721,5.54246855,1804.3,1803.9,6.37253558]
[1746642158923,0.8242,1804.4,1804.2,5.5425192]
[1746642159112,12.55657693,1804.6,1804.2,5.5425192]
[1746642159608,12.55657693,1804.6,1804.1,8.54274883]
[1746642159609,5.54179654,1804.5,1804.1,8.54274883]
[1746642159796,5.54179654,1804.5,1804.2,5.5426227]
[1746642159997,12.55557693,1804.6,1804.2,5.5426227]
[1746642160196,12.55557693,1804.6,1804.2,5.59804436]
[1746642160426,5.54157693,1804.6,1804.2,5.54262276]
[1746642160633,20.7762,1804.7,1804.2,5.54245308]